Cogmind - Beta 14 @@@ ROGUE MODE // 2024.11.23 @ 20:48:18 Player: Klelik Result: Destroyed by G-47 Trooper with Particle Gun Performance ------------- Evolutions (3) 1500 Regions Visited (5) 1000 Robots Destroyed (29) 145 Value Destroyed (674) 674 Prototype IDs (3) 60 Alien Tech Used (0) 0 Bonus (204) 204 TOTAL SCORE: 3583 Bonus ------- Follower Combat Kills 204 Cogmind --------- Core Integrity 0/700 Matter 298/450 Energy 52/100 System Corruption 1% Temperature Cool (9) Movement Core (50) Location -7/Factory Parts ------- > --- POWER (2) -------- (None) > --- PROPULSION (4) --- (None) > --- UTILITY (5) ------ Compact Matter Pod Improved Targeting Computer > --- WEAPON (2) ------- (None) > --- INVENTORY (5) ---- Heavy Rocket Launcher Peak State ------------ > --- POWER ------------ Light Deuterium Engine Micro Nuclear Core > --- PROPULSION ------- Improved VTOL Module Improved VTOL Module Improved VTOL Module Xenon Bombardment Thruster > --- UTILITY ---------- Experimental Sensor Array Improved Targeting Computer Advanced ECM Suite Reaction Control System Improved Shield Generator > --- WEAPON ----------- Light Assault Rifle High-powered Shotgun > --- INVENTORY -------- Light Nuclear Core Improved VTOL Module Compact Matter Pod Heavy Rocket Launcher [Rating: 50] Favorites ----------- Power Light Ion Engine Engine Light Ion Engine Power Core Light Nuclear Core Propulsion Improved VTOL Module Leg Aluminum Leg Hover Unit Hover Unit Flight Unit Improved VTOL Module Utility Improved Targeting Computer Device ECM Suite Storage Small Storage Unit Processor Improved Targeting Computer Weapon Light Assault Rifle Ballistic Gun Light Assault Rifle Launcher Grenade Launcher Special Weapon Mining Laser Build | -11 -10 -9 -9 -8 -7 ------- Run | Yrd Mat Mat Min Mat Fac Slots Evolved 6 | . . 2 . 2 2 Power 1 | . . . . 1 . Propulsion 2 | . . 1 . . 1 Utility 3 | . . 1 . 1 1 Weapon . | . . . . . . Parts Attached 64 | 6 10 14 . 14 20 Power 17 | 1 1 1 . 10 4 Engine 9 | 1 1 1 . 4 2 Core 8 | . . . . 6 2 Reactor . | . . . . . . Propulsion 11 | 2 3 3 . . 3 Treads . | . . . . . . Leg 2 | 2 . . . . . Wheel . | . . . . . . Hover 3 | . 3 . . . . Flight 6 | . . 3 . . 3 Utility 19 | 1 2 7 . 2 7 Device 14 | . 1 5 . 2 6 Storage 2 | 1 . . . . 1 Processor 3 | . 1 2 . . . Hackware . | . . . . . . Protection . | . . . . . . Artifact . | . . . . . . Weapon 17 | 2 4 3 . 2 6 Energy Gun . | . . . . . . Energy Cannon . | . . . . . . Ballistic Gun 11 | 2 2 2 . 1 4 Ballistic Cannon . | . . . . . . Launcher 4 | . 1 . . 1 2 Special Weapon 2 | . 1 1 . . . Impact Weapon . | . . . . . . Slashing Weapon . | . . . . . . Piercing Weapon . | . . . . . . Special Melee Weapon . | . . . . . . Unidentified Prototypes 1 | . . 1 . . . Parts Lost 15 | . 2 1 . 1 11 Power 5 | . 1 . . 1 3 Propulsion 6 | . 1 1 . . 4 Utility 3 | . . . . . 3 Weapon 1 | . . . . . 1 Highest Loss Streak 11 | . 2 1 . 1 11 To Critical Strikes . | . . . . . . Average Slot Usage (%) 96 | . 94 97 100 98 93 Engine 9 | . 12 11 11 7 2 Core 3 | . . . . 10 11 Leg 2 | . 9 . . . . Hover 5 | . 15 2 . . . Flight 20 | . . 29 33 27 28 Device 16 | . 13 11 11 19 27 Storage 3 | . 13 . . . . Processor 11 | . . 21 22 16 7 Ballistic Gun 16 | . 21 13 22 16 14 Special Weapon 4 | . 5 8 . . . Peak Build Rating 50 | 6 8 23 22 35 50 Average Rating 22 | 4 6 20 21 29 43 On Entrance 15 | . 6 8 22 22 35 Naked Turns . | . . . . . . Heaviest Build 23 | 11 12 7 7 15 23 Greatest Support 21 | 20 20 15 15 15 21 Greatest Overweight (x) 3 | 1 3 . . . 2 Average Overweight (x) . | . . . . . . Largest Inventory Capacity 8 | 8 8 5 5 5 5 Average Capacity 5 | 7 7 5 5 5 5 Most Carried 8 | 4 8 5 5 5 5 Average Carried 4 | 2 6 4 4 4 4 Final Capacity 8 | 8 5 5 5 5 5 Final Carried 5 | 4 5 5 5 5 1 Class Distribution -------------------- 66% | Sprinter 33% | Mutant Dominant Class ---------------- Mutant | -10/Materials Sprinter | -9/Materials Sprinter | -9/Mines Sprinter | -8/Materials Sprinter | -7/Factory Resources | -11 -10 -9 -9 -8 -7 ----------- Run | Yrd Mat Mat Min Mat Fac Matter Collected 977 | 225 137 119 10 332 154 Remotely . | . . . . . . Salvage Created 707 | . 146 146 . 215 200 Parts 58 | . 17 13 . 12 16 Haulers Intercepted 2 | . 1 1 . . . Recyclers Shooed . | . . . . . . Parts Field Recycled . | . . . . . . Retrieved Matter . | . . . . . . Parts Self-Destructed . | . . . . . . Prevented . | . . . . . . Kills | -11 -10 -9 -9 -8 -7 ------- Run | Yrd Mat Mat Min Mat Fac Combat Hostiles Destroyed 24 | . 7 5 . 7 5 Guns 14 | . 1 5 . 5 3 Cannons 1 | . 1 . . . . AOE 9 | . 5 . . 2 2 Classes Destroyed 7 | . 4 . . 1 2 Hauler 2 | . 1 1 . . . Watcher 3 | . 1 . . . 2 Swarmer 12 | . 6 3 . 3 . Cutter 2 | . . . . . 2 Grunt 7 | . 1 2 . 2 2 Sentry 2 | . . . . 2 . Programmer 1 | . . . . . 1 Best Kill Streak 6 | . 6 3 . 4 2 Combat Bots Only 6 | . 6 3 . 4 2 Max Kills in Single Turn 5 | . 5 1 . 2 1 Gunslinging . | . . . . . . Exploded 5 | . 5 . . 2 1 Melee . | . . . . . . Uniques/NPCs Destroyed . | . . . . . . Combat | -11 -10 -9 -9 -8 -7 -------- Run | Yrd Mat Mat Min Mat Fac Hostile Shots Fired 181 | . 17 27 . 26 111 Missed 69 | . 4 9 . 9 47 Damage Taken 1869 | . 143 162 . 257 1307 Core 823 | . 13 39 . 59 712 Absorbed by Shields 38 | . . . . . 38 Core Remaining (%) 93 | 100 94 . 90 89 . Volleys Fired 99 | . 24 23 . 21 31 Largest 2 | . 2 2 . 2 2 Hottest 100 | . 100 100 . 40 64 Shots Fired 161 | . 35 41 . 37 48 Gun 136 | . 22 36 . 36 42 Cannon . | . . . . . . Launcher 8 | . 1 . . 1 6 Special 17 | . 12 5 . . . Kinetic 136 | . 22 36 . 36 42 Thermal 17 | . 12 5 . . . Explosive 8 | . 1 . . 1 6 Electromagnetic . | . . . . . . Robot Hit Streak 15 | . 6 9 . 11 15 Robot Miss Streak 5 | . 2 2 . 2 5 Penetration Max . | . . . . . . Secondary Targets 1 | . . 1 . . . Max Gunslinging Chain 1 | . . 1 . . . Shots Hit Robots 98 | . 12 26 . 30 30 Core Hits 60 | . 13 14 . 16 17 Critical Kills . | . . . . . . Critical Parts Destroyed 1 | . . 1 . . . Critical Strikes 1 | . . 1 . . . Destroy 1 | . . 1 . . . Melee Attacks . | . . . . . . Impact . | . . . . . . Slashing . | . . . . . . Piercing . | . . . . . . Sneak Attacks . | . . . . . . Combat Hostiles . | . . . . . . Follow-up Attacks . | . . . . . . Damage Inflicted 1727 | . 349 228 . 349 801 Guns 972 | . 85 204 . 262 421 Cannons . | . . . . . . Explosions 707 | . 240 . . 87 380 Melee . | . . . . . . Ramming . | . . . . . . Kinetic 972 | . 85 204 . 262 421 Thermal 48 | . 24 24 . . . Explosive 707 | . 240 . . 87 380 Electromagnetic . | . . . . . . Impact . | . . . . . . Slashing . | . . . . . . Piercing . | . . . . . . Highest Corruption 1 | . . . . . 1 Average Corruption 1 | . . . . . 1 Corruption Purged . | . . . . . . Corruption Blocked . | . . . . . . Effects 1 | . . . . . 1 Misfires 1 | . . . . . 1 Overload Shots . | . . . . . . Overflow Damage 12 | . 12 . . . . Projectiles . | . . . . . . Explosions 12 | . 12 . . . . Melee . | . . . . . . Knockbacks . | . . . . . . Impact . | . . . . . . Kinetic . | . . . . . . Secondary . | . . . . . . Self-Inflicted Damage 222 | . 39 . . . 183 Shots 4 | . 1 . . . 3 Rammed . | . . . . . . Targets Rammed . | . . . . . . Kicked . | . . . . . . Crushed . | . . . . . . Highest Temperature 168 | . 168 40 . 31 55 Average Temperature 23 | . 54 13 . 10 10 Received Heat Transfer 295 | . 6 30 . 108 151 Siege Activations . | . . . . . . Robots Corrupted . | . . . . . . Combat Hostiles . | . . . . . . Parts Fried . | . . . . . . Impact Corruptions . | . . . . . . Robots Melted . | . . . . . . Combat Hostiles . | . . . . . . Parts Melted . | . . . . . . Heat Transferred 100 | . 50 50 . . . Parts Sabotaged . | . . . . . . Parts Stolen . | . . . . . . Parts Stripped . | . . . . . . Power Chain Reactions . | . . . . . . Alert | -11 -10 -9 -9 -8 -7 ------- Run | Yrd Mat Mat Min Mat Fac Peak Influence 398 | . 182 138 53 398 250 Initial 112 | . . 76 53 20 112 Average 89 | . 46 65 53 202 138 Maximum Alert Level 1 | . . . . 1 1 Low Security (%) 91 | 100 100 100 100 52 82 Level 1 8 | . . . . 47 17 Level 2 . | . . . . . . Level 3 . | . . . . . . Level 4 . | . . . . . . Level 5 . | . . . . . . High Security . | . . . . . . Max Security . | . . . . . . Squads Dispatched 11 | . 3 . . 1 7 Investigation 4 | . 2 . . . 2 Extermination 1 | . . . . . 1 Reinforcement 6 | . 1 . . 1 4 Assault . | . . . . . . Garrison . | . . . . . . Intercept . | . . . . . . Searches Triggered . | . . . . . . Construction Impeded . | . . . . . . Haulers Reinforced . | . . . . . . Active Scanning Responses . | . . . . . . Cargo Convoy Interrupts . | . . . . . . Stealth | -11 -10 -9 -9 -8 -7 --------- Run | Yrd Mat Mat Min Mat Fac Distress Signals 7 | . 2 3 . . 2 Communications Jammed . | . . . . . . Distress Signals . | . . . . . . Times Spotted 75 | . 9 24 . 17 25 Peak Tracking Total 6 | . 6 5 . 3 5 Tactical Retreats 14 | . . 6 . 3 5 Traps | -11 -10 -9 -9 -8 -7 ------- Run | Yrd Mat Mat Min Mat Fac Traps Triggered 2 | . 1 . . . 1 Indirectly . | . . . . . . Trap Hack Attempts . | . . . . . . Triggered . | . . . . . . Disarmed . | . . . . . . Reprogrammed . | . . . . . . Reused . | . . . . . . Traps Extracted . | . . . . . . Installed . | . . . . . . Triggered . | . . . . . . Machines | -11 -10 -9 -9 -8 -7 ---------- Run | Yrd Mat Mat Min Mat Fac Machines Disabled 1 | . . . . . 1 Max in Single Turn 1 | . . . . . 1 Machines Repaired . | . . . . . . Machines Dismantled . | . . . . . . Machines Sabotaged . | . . . . . . Overloaded Fab Kills . | . . . . . . Hacking | -11 -10 -9 -9 -8 -7 --------- Run | Yrd Mat Mat Min Mat Fac Machines Accessed 15 | . 4 3 . 2 6 Terminals 10 | . 4 2 . 1 3 Fabricators 1 | . . . . . 1 Repair Stations . | . . . . . . Recycling Units 2 | . . 1 . . 1 Scanalyzers 2 | . . . . 1 1 Garrison Access . | . . . . . . Total Hacks 36 | . 8 8 . 7 13 Successful 17 | . 1 5 . 4 7 Failed 19 | . 7 3 . 3 6 Catastrophic 3 | . . 1 . 1 1 Database Lockouts . | . . . . . . Manual 9 | . 5 . . 3 1 Terminals 23 | . 8 5 . 5 5 Fabricators 2 | . . . . . 2 Repair Stations . | . . . . . . Recycling Units 6 | . . 3 . . 3 Scanalyzers 5 | . . . . 2 3 Garrison Access . | . . . . . . Terminal Hacks 6 | . 1 2 . 2 1 Record 1 | . . 1 . . . Open DSF 1 | . . . . . 1 Alert Level 2 | . . 1 . 1 . Unreport Threat 1 | . . . . 1 . Locate Traps 1 | . 1 . . . . Fabricator Hacks 2 | . . . . . 2 Load Schematic 1 | . . . . . 1 Build 1 | . . . . . 1 Repair Station Hacks . | . . . . . . Recycling Unit Hacks 5 | . . 3 . . 2 Process 2 | . . 1 . . 1 Report Inventory 1 | . . 1 . . . Retrieve Matter 2 | . . 1 . . 1 Scanalyzer 4 | . . . . 2 2 Insert Component 2 | . . . . 1 1 Analyze 2 | . . . . 1 1 Garrison Access Hacks . | . . . . . . Unauthorized Hacks . | . . . . . . Terminals . | . . . . . . Fabricators . | . . . . . . Repair Stations . | . . . . . . Recycling Units . | . . . . . . Scanalyzers . | . . . . . . Garrison Access . | . . . . . . Data Cores Recovered . | . . . . . . Used . | . . . . . . Hacking Detections 12 | . 4 1 . 2 5 Full Trace Events 2 | . . . . . 2 Feedback Events . | . . . . . . Feedback Blocked . | . . . . . . Robot Schematics Acquired . | . . . . . . Robots Built . | . . . . . . Authchips . | . . . . . . Time . | . . . . . . Total Robot Build Rating . | . . . . . . Part Schematics Acquired 1 | . . . . 1 . Parts Built 1 | . . . . . 1 Authchips . | . . . . . . Time 204 | . . . . . 204 Total Part Build Rating 8 | . . . . . 8 Parts Repaired . | . . . . . . Time . | . . . . . . Parts Recycled . | . . . . . . Recycled Matter 147 | . . 134 . . 13 Retrieved Matter 197 | . . 184 . . 13 Retrieved Components . | . . . . . . Parts Scanalyzed 2 | . . . . 1 1 Part Schematics Acquired 1 | . . . . 1 . Parts Damaged . | . . . . . . Bothacking | -11 -10 -9 -9 -8 -7 ------------ Run | Yrd Mat Mat Min Mat Fac Used RIF Installer . | . . . . . . Robots Hacked . | . . . . . . Non-combat . | . . . . . . Combat . | . . . . . . Robot Hacks Applied . | . . . . . . Relay Couplers Released . | . . . . . . Fabnet Peak Effective % . | . . . . . . Robots Rewired . | . . . . . . Allies Hacked . | . . . . . . Hacks Repelled . | . . . . . . Allies | -11 -10 -9 -9 -8 -7 -------- Run | Yrd Mat Mat Min Mat Fac Total Allies 5 | . . . 5 . . Largest Group 5 | . . . 5 5 . Highest-Rated Group 79 | . . . 79 79 . Highest-Rated Ally 31 | . . . 31 31 . Total Orders . | . . . . . . Ally Attacks 48 | . . . . 48 . Total Damage 600 | . . . . 600 . Kills 7 | . . . . 7 . Allies Corrupted . | . . . . . . Allies Melted . | . . . . . . Intel | -11 -10 -9 -9 -8 -7 ------- Run | Yrd Mat Mat Min Mat Fac Robot Analysis Total . | . . . . . . Derelict Logs Recovered . | . . . . . . Drone Launches . | . . . . . . Drone Recoveries . | . . . . . . Exploration | -11 -10 -9 -9 -8 -7 ------------- Run | Yrd Mat Mat Min Mat Fac Turns Passed 2468 | 68 672 768 125 258 577 Spaces Moved 2248 | 46 321 328 333 371 849 Core 9 | 5 1 . . . 3 Treads . | . . . . . . Legs 137 | 41 96 . . . . Wheels . | . . . . . . Hover 309 | . 224 85 . . . Flight 1793 | . . 243 333 371 846 Fastest Speed 26 | 50 56 29 29 29 26 Average Speed 41 | 113 97 36 29 29 27 Slowest Speed 200 | 120 200 60 29 29 184 Overloaded Moves . | . . . . . . Propulsion Burnouts . | . . . . . . Robots Hopped 5 | . . . 1 . 4 Cave-ins Triggered . | . . . . . . Exploration Rate (%) 32 | 4 44 30 65 25 26 Regions Visited 5 Branch Regions 1 Pre-discovered Areas . | . . . . . . Known Exits Taken . | . . . . . . Unknown Exits Taken 5 | 1 1 1 1 1 . Scrap Searched 1 | . . . 1 . . Spaces Dug 13 | . 10 3 . . . Terrain Destroyed 70 | . 18 3 . 9 40 Melee . | . . . . . . Projectile 13 | . 10 3 . . . AOE 57 | . 8 . . 9 40 Terrain Rammed . | . . . . . . Walls Destroyed . | . . . . . . Machines Disabled . | . . . . . . Actions | -11 -10 -9 -9 -8 -7 --------- Run | Yrd Mat Mat Min Mat Fac Total 3620 | 59 625 933 360 492 1151 Wait 1143 | 3 251 554 25 73 237 Move 2233 | 45 320 327 330 370 841 Hop 5 | . . . 1 . 4 Pick Up 29 | 5 8 5 2 5 4 Fast Attach 16 | 5 5 5 . . 1 Attach 21 | 1 1 2 . 5 12 Detach 12 | . 3 2 . 2 5 Swap 27 | . 4 7 . 9 7 Drop 35 | . 9 8 2 7 9 Fire 99 | . 24 23 . 21 31 Melee . | . . . . . . Ram . | . . . . . . Kick . | . . . . . . Crush . | . . . . . . Escape Stasis . | . . . . . . Rewire . | . . . . . . Trap . | . . . . . . Miscellaneous . | . . . . . . Route ------- -11/Scrapyard -10/Materials -9/Materials (discovered 3 exits: [*Min] / [*Sto x2]) -9/Mines -8/Materials -7/Factory (discovered 1 exit: [*Low]) History --------- Turn | Location | Event 11 | -11/Scrapyard | Discovered new exit (range 15) 69 | -11/Scrapyard | Entered Materials 323 | -10/Materials | Build established: Mutant 718 | -10/Materials | Discovered new exit (range 18) 741 | -10/Materials | Entered another Materials area 741 | -9/Materials | Evolved 2 slots: Propulsion x1, Utility x1 741 | -9/Materials | Discovered new exit (range 8) 1118 | -9/Materials | Build established: Sprinter 1416 | -9/Materials | Discovered new exit (range 7) 1455 | -9/Materials | Discovered new exit (range 8) 1509 | -9/Materials | Entered Mines 1524 | -9/Mines | Received a Rocket Launcher from a helpful Derelict 1534 | -9/Mines | Found a damaged Exp. Sensor Array with a note attached 1535 | -9/Mines | Found Prototype Device 1578 | -9/Mines | Discovered new exit (range 16) 1587 | -9/Mines | Assisted by bots powering up and referring to "LRC-V3" 1634 | -9/Mines | Entered Materials 1634 | -8/Materials | Accompanied by 5 allies 1634 | -8/Materials | Evolved 2 slots: Power x1, Utility x1 1639 | -8/Materials | Led the pair of lost Derelicts to an unsafe place 1784 | -8/Materials | Lost 3 allies 1836 | -8/Materials | Discovered new exit (range 3) 1865 | -8/Materials | Identified Exp. Sensor Array 1892 | -8/Materials | Entered Factory 1892 | -7/Factory | Evolved 2 slots: Propulsion x1, Utility x1 1915 | -7/Factory | Discovered new exit (range 5) 2174 | -7/Factory | Fabricated Exp. Sensor Array? 2458 | -7/Factory | Core integrity fell below 50% 2463 | -7/Factory | Core integrity fell below 20% 2469 | -7/Factory | Destroyed by G-47 Trooper with Particle Gun Last Messages --------------- 02444_ Slug penetrates Construction Platform. 02444_ Construction Platform disabled. 02447_ Hpw. Shotgun destroyed. 02447_ K-01 Serf cleans the Construction Platform. 02450_ System corrupted: FCS attempts to trigger Lgt. Assault Rifle. 02450_ System corrupted: Lgt. Assault Rifle misfires. 02451_ Adv. ECM Suite severed. 02456_ Lgt. Assault Rifle severed. 02457_ Imp. VTOL Module severed. 02458_ Slug penetrates Wall. 02458_ C-17 Slicer destroyed. 02459_ K-01 Serf cleans the Construction Platform. 02460_ C-17 Slicer destroyed. 02463_ The unstable cave ceiling collapses. 02463_ Construction Platform disabled. 02464_ Penetrated by Slug. Map ----- +----------------------------------------------------+ | ???????????????# ?????????????????????# # | | ???????????????# "?????? "????????????# # | | ???????????????# """"""? "?????? ???# # | | ??????+????????# "" """" """???" ???# # | | ????# ????????? """"""" """""?" #??# # | | ???? ????????# #### ! # | | ????# ?#??##### ! """?""" # | | ????# ? ??"" # """"""" * + | | ????# ? ??"" # """ """ %""%""" ## | | ????# ? ???" !!= """ %""=""" #? | | ????# ? ????? !=! """ """ #? | | ????# ? ??????#!=! #? | | ????# # ??????# k """ """ #? | | ???## "######## """ """ ## | | ???# %% gg ]! """ """ | | ???# ]] | | ???# !] | | ???# % % | | ???# | | ???# ""############ " F"!!= ## | | ???# # ????????# = """" == #? | | ??# ???????# h ###+##############? | | ?## H ! ??????# #??????? | | = # ????# #??????? | | ! ]!! ???# g #??????? | | ? ]! ??# @ #??????? | | +## # !! ## # #??????? | | ? ## # #??????? | | # #?######### # #??????? | | ## # ??????????# # #??????? | | " ? # ??????????# # #??????? | | "?? # ??????????# # #??????? | | ??# ?! ????????# # [ #??????? | | ???? ?? ???????#| a # #??????? | | ???? ##+##+####### ########+##+##??????? | | ????? / #????#?# #???????? | | ??????????# # #??????# #???????? | | ??????????# ################ #???????? | | #########?# #####"""T"""# #???????? | | = #?# ######### | | ### ## | | + """ """ """ !!! ## | | """ """ # """ """ """ !!! ## | | """ """ # """ """ """ !!! # """ "" | | """ """ + + """ "" | | ## """ """ """ """ # """ "" | | ## """ """ """ """ # | | ###+###### ########## """ """ """ """ # | | ?# #????????# ######## | | ?# #####+#????????# """ """ """ #??????? | +----------------------------------------------------+ Best States ------------- Heat Dissipation 34 Energy Generation 24 Energy Capacity 265 Matter Stores 300 Matter Capacity 300 Sight Range 18 Robot Scan Range 20 Terrain Scan Range 16 Terrain Scan Density 110 ECM Strength 2 Evasion (%) 72 Targeting Accuracy 6 Item Schematics ----------------- Exp. Sensor Array | -8/Materials | Scanalyzed Robot Schematics ------------------ None Fabricated ------------ Exp. Sensor Array | x1 | -7/Factory Alien Tech Used ----------------- None Achievements -------------- Omniscient Cartographer Challenges ------------ None Game ------ Seed LayeredGravitonMicrothruster Manual? 0 Play Time 01:06:15 Cumulative 25.6 hours Start 2024.11.23 @ 19:34:12 End 2024.11.23 @ 20:48:18 Sessions 1 Manual Loads 0 Difficulty Rogue Special Mode None Game No. 18 Rogue 13 Adventurer 5 Explorer 0 Win Type - Total 0 Types 0/0/0/0/0/0/0/0/0 Lore% 5 Gallery% 25 Achievement% 23 Wizard Run 0 Options --------- Layout 2 ASCII 0 Keyboard 1 Movement Numpad Keybinds 0 Fullscreen 1 Font 24/Smallcaps Map View 50x44 Zoom Use 0% Tactical HUD 1 Map Filters NONE Filters NONE Steam 1 RUN: df8cd30a-6d90-4ff2-8fb5-7625743fd1e3